Workbook

Sheet 工作表1
A1: a = | B1: 3 | D1: i | E1: tau | F1: a+mu*tau | G1: dZ(tau) | H1: Z(tau-dt) | I1: sigma*Z(tau-dt) | K1: 第(i)項積分 | L1: 第(ii)項積分 | O1: Trial | P1: 第(i)項積分 | Q1: 第(ii)項積分 | T1: 第(i)項積分 | U1: 第(ii)項積分
A2: mu = | B2: 0.1 | D2: 0 | E2: =(T/MAX(D:D))*D2 -> 0 | K2: =SUMPRODUCT(F3:F10002,G3:G10002) -> -6.135574066 | L2: =SUMPRODUCT(I3:I10002,G3:G10002) -> 0.3027439075 | O2: 1 | P2: 0.2542420572 | Q2: -0.03013564329 | S2: mean | T2: =AVERAGE(P:P) -> -0.03790460473 | U2: =AVERAGE(Q:Q) -> -0.001828120936
A3: sigma = | B3: 0.2 | D3: 1 | E3: 0.0001 | F3: =a+mu*E3 -> 3.00001 | G3: =_xlfn.NORM.S.INV(RAND())*SQRT(dt) -> 0.008343269072 | H3: 0 | I3: =sigma*H3 -> 0 | O3: 2 | P3: -6.488472295 | Q3: -0.08626222187 | S3: var | T3: =_xlfn.VAR.S(P:P) -> 9.338508219 | U3: =_xlfn.VAR.S(Q:Q) -> 0.01903128203
A4: T = | B4: 1 | D4: 2 | E4: 0.0002 | F4: 3.00002 | G4: =_xlfn.NORM.S.INV(RAND())*SQRT(dt) -> -0.02090133131 | H4: =H3+G3 -> 0.008343269072 | I4: 0.001668653814 | O4: 3 | P4: -1.909707435 | Q4: -0.08459774653 | S4: cov | T4: =_xlfn.COVARIANCE.S(Q:Q,P:P) -> 0.00598185122
A5: n = | B5: =MAX(D:D) -> 10000 | D5: 3 | E5: 0.0003 | F5: 3.00003 | G5: =_xlfn.NORM.S.INV(RAND())*SQRT(dt) -> -0.008238009474 | H5: =H4+G4 -> -0.01255806224 | I5: -0.002511612448 | O5: 4 | P5: 2.496791109 | Q5: 0.1101250909
A6: dt = | B6: =T/n -> 0.0001 | D6: 4 | E6: 0.0004 | F6: 3.00004 | G6: =_xlfn.NORM.S.INV(RAND())*SQRT(dt) -> -0.002010840827 | H6: -0.02079607171 | I6: -0.004159214343 | O6: 5 | P6: -1.351974799 | Q6: -0.07418707085
A7: num of trials = | B7: 10000 | D7: 5 | E7: 0.0005 | F7: 3.00005 | G7: =_xlfn.NORM.S.INV(RAND())*SQRT(dt) -> -0.02458174449 | H7: -0.02280691254 | I7: -0.004561382508 | O7: 6 | P7: 3.493737987 | Q7: -0.08203144451 | S7: 理論結果 | T7: 第(i)項積分 | U7: 第(ii)項積分
D8: 6 | E8: 0.0006 | F8: 3.00006 | G8: =_xlfn.NORM.S.INV(RAND())*SQRT(dt) -> 0.009090041197 | H8: -0.04738865703 | I8: -0.009477731406 | O8: 7 | P8: -0.2004826259 | Q8: -0.05264484847 | S8: mean | T8: 0 | U8: 0
D9: 7 | E9: 0.0007 | F9: 3.00007 | G9: =_xlfn.NORM.S.INV(RAND())*SQRT(dt) -> 0.001382975454 | H9: -0.03829861583 | I9: -0.007659723167 | O9: 8 | P9: 6.174301673 | Q9: -0.06917152746 | S9: var | T9: =a^2*T+a*mu*T^2+mu^2*T^3/3 -> 9.303333333 | U9: =sigma^2*T^2/2 -> 0.02
D10: 8 | E10: 0.0008 | F10: 3.00008 | G10: =_xlfn.NORM.S.INV(RAND())*SQRT(dt) -> -0.007690535839 | H10: -0.03691564038 | I10: -0.007383128076 | O10: 9 | P10: -3.869009701 | Q10: -0.0681771035 | S10: cov | T10: 0
D11: 9 | E11: 0.0009 | F11: 3.00009 | G11: =_xlfn.NORM.S.INV(RAND())*SQRT(dt) -> 0.009923060612 | H11: -0.04460617622 | I11: -0.008921235244 | O11: 10 | P11: -1.329654852 | Q11: -0.09364934538
D12: 10 | E12: 0.001 | F12: 3.0001 | G12: =_xlfn.NORM.S.INV(RAND())*SQRT(dt) -> 3.485283522e-05 | H12: -0.03468311561 | I12: -0.006936623122 | O12: 11 | P12: -3.807927058 | Q12: -0.08222565952
D13: 11 | E13: 0.0011 | F13: 3.00011 | G13: =_xlfn.NORM.S.INV(RAND())*SQRT(dt) -> -0.0001941461542 | H13: -0.03464826277 | I13: -0.006929652555 | O13: 12 | P13: -0.2823096751 | Q13: -0.07233161995
D14: 12 | E14: 0.0012 | F14: 3.00012 | G14: =_xlfn.NORM.S.INV(RAND())*SQRT(dt) -> 0.001322226492 | H14: -0.03484240893 | I14: -0.006968481785 | O14: 13 | P14: -1.067921998 | Q14: -0.01861670753
D15: 13 | E15: 0.0013 | F15: 3.00013 | G15: =_xlfn.NORM.S.INV(RAND())*SQRT(dt) -> 0.005521895223 | H15: -0.03352018244 | I15: -0.006704036487 | O15: 14 | P15: 8.464612104 | Q15: 0.08031689548
D16: 14 | E16: 0.0014 | F16: 3.00014 | G16: =_xlfn.NORM.S.INV(RAND())*SQRT(dt) -> 0.004208601352 | H16: -0.02799828721 | I16: -0.005599657443 | O16: 15 | P16: -1.56543354 | Q16: -0.02666012036
D17: 15 | E17: 0.0015 | F17: 3.00015 | G17: =_xlfn.NORM.S.INV(RAND())*SQRT(dt) -> 0.01665387812 | H17: -0.02378968586 | I17: -0.004757937172 | O17: 16 | P17: -1.460092061 | Q17: -0.09806148349
D18: 16 | E18: 0.0016 | F18: 3.00016 | G18: =_xlfn.NORM.S.INV(RAND())*SQRT(dt) -> 0.009141896966 | H18: -0.007135807737 | I18: -0.001427161547 | O18: 17 | P18: -1.173920445 | Q18: -0.08285306806
D19: 17 | E19: 0.0017 | F19: 3.00017 | G19: =_xlfn.NORM.S.INV(RAND())*SQRT(dt) -> 0.009231396657 | H19: 0.002006089229 | I19: 0.0004012178458 | O19: 18 | P19: -0.3480023605 | Q19: -0.07316656256
D20: 18 | E20: 0.0018 | F20: 3.00018 | G20: =_xlfn.NORM.S.INV(RAND())*SQRT(dt) -> -0.01549991943 | H20: 0.01123748589 | I20: 0.002247497177 | O20: 19 | P20: 1.185693834 | Q20: -0.0989544616
D21: 19 | E21: 0.0019 | F21: 3.00019 | G21: =_xlfn.NORM.S.INV(RAND())*SQRT(dt) -> 0.008956697821 | H21: -0.00426243354 | I21: -0.0008524867081 | O21: 20 | P21: 0.6121411539 | Q21: -0.03342266753
D22: 20 | E22: 0.002 | F22: 3.0002 | G22: =_xlfn.NORM.S.INV(RAND())*SQRT(dt) -> -0.006675182075 | H22: 0.004694264281 | I22: 0.0009388528561 | O22: 21 | P22: -0.5451423825 | Q22: 0.4578844242
D23: 21 | E23: 0.0021 | F23: 3.00021 | G23: =_xlfn.NORM.S.INV(RAND())*SQRT(dt) -> -0.01374460762 | H23: -0.001980917795 | I23: -0.000396183559 | O23: 22 | P23: -4.374893314 | Q23: -0.04723792321
D24: 22 | E24: 0.0022 | F24: 3.00022 | G24: =_xlfn.NORM.S.INV(RAND())*SQRT(dt) -> -0.01285402916 | H24: -0.01572552542 | I24: -0.003145105083 | O24: 23 | P24: -0.09757239168 | Q24: -0.03816353802
D25: 23 | E25: 0.0023 | F25: 3.00023 | G25: =_xlfn.NORM.S.INV(RAND())*SQRT(dt) -> -0.02059345461 | H25: -0.02857955457 | I25: -0.005715910914 | O25: 24 | P25: -0.7545978146 | Q25: -0.03177227172
D26: 24 | E26: 0.0024 | F26: 3.00024 | G26: =_xlfn.NORM.S.INV(RAND())*SQRT(dt) -> 0.010660239 | H26: -0.04917300918 | I26: -0.009834601836 | O26: 25 | P26: -3.919298236 | Q26: -0.0816980394
D27: 25 | E27: 0.0025 | F27: 3.00025 | G27: =_xlfn.NORM.S.INV(RAND())*SQRT(dt) -> 0.009010077143 | H27: -0.03851277018 | I27: -0.007702554036 | O27: 26 | P27: 1.756399185 | Q27: -0.07672143576
D28: 26 | E28: 0.0026 | F28: 3.00026 | G28: =_xlfn.NORM.S.INV(RAND())*SQRT(dt) -> 0.01107530707 | H28: -0.02950269304 | I28: -0.005900538608 | O28: 27 | P28: 1.832146895 | Q28: -0.06621047043
D29: 27 | E29: 0.0027 | F29: 3.00027 | G29: =_xlfn.NORM.S.INV(RAND())*SQRT(dt) -> 0.003690442066 | H29: -0.01842738597 | I29: -0.003685477193 | O29: 28 | P29: -0.3313261597 | Q29: -0.06487113821
D30: 28 | E30: 0.0028 | F30: 3.00028 | G30: =_xlfn.NORM.S.INV(RAND())*SQRT(dt) -> 0.01049544035 | H30: -0.0147369439 | I30: -0.00294738878 | O30: 29 | P30: -5.592862875 | Q30: -0.02908967023
D31: 29 | E31: 0.0029 | F31: 3.00029 | G31: =_xlfn.NORM.S.INV(RAND())*SQRT(dt) -> 0.003187925749 | H31: -0.004241503555 | I31: -0.0008483007111 | O31: 30 | P31: 2.722743153 | Q31: -0.07367586907
D32: 30 | E32: 0.003 | F32: 3.0003 | G32: =_xlfn.NORM.S.INV(RAND())*SQRT(dt) -> 0.002837691434 | H32: -0.001053577806 | I32: -0.0002107155612 | O32: 31 | P32: -0.5513415235 | Q32: 0.06874886786
D33: 31 | E33: 0.0031 | F33: 3.00031 | G33: =_xlfn.NORM.S.INV(RAND())*SQRT(dt) -> 0.01498974632 | H33: 0.001784113628 | I33: 0.0003568227255 | O33: 32 | P33: -0.9655272869 | Q33: -0.06957363488
D34: 32 | E34: 0.0032 | F34: 3.00032 | G34: =_xlfn.NORM.S.INV(RAND())*SQRT(dt) -> -0.004965912843 | H34: 0.01677385994 | I34: 0.003354771989 | O34: 33 | P34: 1.195515194 | Q34: -0.09255781695
D35: 33 | E35: 0.0033 | F35: 3.00033 | G35: =_xlfn.NORM.S.INV(RAND())*SQRT(dt) -> 0.02867156344 | H35: 0.0118079471 | I35: 0.00236158942 | O35: 34 | P35: 5.224732023 | Q35: 0.9217041424
D36: 34 | E36: 0.0034 | F36: 3.00034 | G36: =_xlfn.NORM.S.INV(RAND())*SQRT(dt) -> -7.975613613e-05 | H36: 0.04047951055 | I36: 0.008095902109 | O36: 35 | P36: -2.231588255 | Q36: -0.09881471768
D37: 35 | E37: 0.0035 | F37: 3.00035 | G37: =_xlfn.NORM.S.INV(RAND())*SQRT(dt) -> -0.009056134213 | H37: 0.04039975441 | I37: 0.008079950882 | O37: 36 | P37: -1.487420064 | Q37: -0.02077331518
D38: 36 | E38: 0.0036 | F38: 3.00036 | G38: =_xlfn.NORM.S.INV(RAND())*SQRT(dt) -> 0.004568925085 | H38: 0.0313436202 | I38: 0.006268724039 | O38: 37 | P38: -2.745897271 | Q38: -0.09591417613
D39: 37 | E39: 0.0037 | F39: 3.00037 | G39: =_xlfn.NORM.S.INV(RAND())*SQRT(dt) -> 0.0120253546 | H39: 0.03591254528 | I39: 0.007182509056 | O39: 38 | P39: -1.427506702 | Q39: -0.0860232904
D40: 38 | E40: 0.0038 | F40: 3.00038 | G40: =_xlfn.NORM.S.INV(RAND())*SQRT(dt) -> 0.009100635234 | H40: 0.04793789988 | I40: 0.009587579976 | O40: 39 | P40: 5.076209677 | Q40: 0.1305045836
D41: 39 | E41: 0.0039 | F41: 3.00039 | G41: =_xlfn.NORM.S.INV(RAND())*SQRT(dt) -> 0.01095130645 | H41: 0.05703853511 | I41: 0.01140770702 | O41: 40 | P41: 0.07050067456 | Q41: -0.09488878287
D42: 40 | E42: 0.004 | F42: 3.0004 | G42: =_xlfn.NORM.S.INV(RAND())*SQRT(dt) -> -0.01386801487 | H42: 0.06798984157 | I42: 0.01359796831 | O42: 41 | P42: -4.511631382 | Q42: -0.002107132437
D43: 41 | E43: 0.0041 | F43: 3.00041 | G43: =_xlfn.NORM.S.INV(RAND())*SQRT(dt) -> -0.006329661731 | H43: 0.0541218267 | I43: 0.01082436534 | O43: 42 | P43: 2.132490237 | Q43: -0.08246378077
D44: 42 | E44: 0.0042 | F44: 3.00042 | G44: =_xlfn.NORM.S.INV(RAND())*SQRT(dt) -> -0.009931293756 | H44: 0.04779216497 | I44: 0.009558432993 | O44: 43 | P44: -1.935119102 | Q44: -0.08345355361
D45: 43 | E45: 0.0043 | F45: 3.00043 | G45: =_xlfn.NORM.S.INV(RAND())*SQRT(dt) -> -0.00372771782 | H45: 0.03786087121 | I45: 0.007572174242 | O45: 44 | P45: -0.9786504457 | Q45: -0.0778292842
D46: 44 | E46: 0.0044 | F46: 3.00044 | G46: =_xlfn.NORM.S.INV(RAND())*SQRT(dt) -> -0.00901003591 | H46: 0.03413315339 | I46: 0.006826630678 | O46: 45 | P46: -4.917778887 | Q46: 0.09887001356
D47: 45 | E47: 0.0045 | F47: 3.00045 | G47: =_xlfn.NORM.S.INV(RAND())*SQRT(dt) -> 0.002952711963 | H47: 0.02512311748 | I47: 0.005024623496 | O47: 46 | P47: -0.7719719794 | Q47: 0.4873094585
D48: 46 | E48: 0.0046 | F48: 3.00046 | G48: =_xlfn.NORM.S.INV(RAND())*SQRT(dt) -> 0.01157365954 | H48: 0.02807582944 | I48: 0.005615165889 | O48: 47 | P48: -2.509425631 | Q48: -0.06902090394
D49: 47 | E49: 0.0047 | F49: 3.00047 | G49: =_xlfn.NORM.S.INV(RAND())*SQRT(dt) -> -0.01019011226 | H49: 0.03964948899 | I49: 0.007929897797 | O49: 48 | P49: -2.642200213 | Q49: 0.08816520687
D50: 48 | E50: 0.0048 | F50: 3.00048 | G50: =_xlfn.NORM.S.INV(RAND())*SQRT(dt) -> -0.009318534736 | H50: 0.02945937673 | I50: 0.005891875346 | O50: 49 | P50: -3.36112724 | Q50: -0.09635362563
D51: 49 | E51: 0.0049 | F51: 3.00049 | G51: =_xlfn.NORM.S.INV(RAND())*SQRT(dt) -> -0.01433118185 | H51: 0.020140842 | I51: 0.004028168399 | O51: 50 | P51: 0.401276007 | Q51: 0.141151436
D52: 50 | E52: 0.005 | F52: 3.0005 | G52: =_xlfn.NORM.S.INV(RAND())*SQRT(dt) -> -0.01337636318 | H52: 0.00580966015 | I52: 0.00116193203 | O52: 51 | P52: -1.016236516 | Q52: -0.0816678037
D53: 51 | E53: 0.0051 | F53: 3.00051 | G53: =_xlfn.NORM.S.INV(RAND())*SQRT(dt) -> 0.003384972057 | H53: -0.007566703026 | I53: -0.001513340605 | O53: 52 | P53: 2.432164461 | Q53: -0.08876772888
D54: 52 | E54: 0.0052 | F54: 3.00052 | G54: =_xlfn.NORM.S.INV(RAND())*SQRT(dt) -> -0.01316328011 | H54: -0.004181730969 | I54: -0.0008363461937 | O54: 53 | P54: 0.01547849573 | Q54: -0.100606408
D55: 53 | E55: 0.0053 | F55: 3.00053 | G55: =_xlfn.NORM.S.INV(RAND())*SQRT(dt) -> -0.01165658195 | H55: -0.01734501108 | I55: -0.003469002216 | O55: 54 | P55: -2.686971008 | Q55: -0.04542136348
D56: 54 | E56: 0.0054 | F56: 3.00054 | G56: =_xlfn.NORM.S.INV(RAND())*SQRT(dt) -> 0.004089474497 | H56: -0.02900159303 | I56: -0.005800318606 | O56: 55 | P56: 0.3528784849 | Q56: 0.08470606828
D57: 55 | E57: 0.0055 | F57: 3.00055 | G57: =_xlfn.NORM.S.INV(RAND())*SQRT(dt) -> 0.003847716501 | H57: -0.02491211853 | I57: -0.004982423707 | O57: 56 | P57: 1.665514777 | Q57: -0.05537843825
D58: 56 | E58: 0.0056 | F58: 3.00056 | G58: =_xlfn.NORM.S.INV(RAND())*SQRT(dt) -> -0.007983549768 | H58: -0.02106440203 | I58: -0.004212880406 | O58: 57 | P58: -1.71121449 | Q58: -0.08604442872
D59: 57 | E59: 0.0057 | F59: 3.00057 | G59: =_xlfn.NORM.S.INV(RAND())*SQRT(dt) -> -0.004687678208 | H59: -0.0290479518 | I59: -0.00580959036 | O59: 58 | P59: 0.8442783226 | Q59: -0.02283993213
D60: 58 | E60: 0.0058 | F60: 3.00058 | G60: =_xlfn.NORM.S.INV(RAND())*SQRT(dt) -> 0.001006890846 | H60: -0.03373563001 | I60: -0.006747126001 | O60: 59 | P60: -0.7958689975 | Q60: -0.08303144168
D61: 59 | E61: 0.0059 | F61: 3.00059 | G61: =_xlfn.NORM.S.INV(RAND())*SQRT(dt) -> -0.01524067906 | H61: -0.03272873916 | I61: -0.006545747832 | O61: 60 | P61: 2.246553609 | Q61: -0.04357807206
D62: 60 | E62: 0.006 | F62: 3.0006 | G62: =_xlfn.NORM.S.INV(RAND())*SQRT(dt) -> 0.01595603592 | H62: -0.04796941823 | I62: -0.009593883645 | O62: 61 | P62: 4.26626676 | Q62: 0.01047773404
D63: 61 | E63: 0.0061 | F63: 3.00061 | G63: =_xlfn.NORM.S.INV(RAND())*SQRT(dt) -> 0.01654964877 | H63: -0.0320133823 | I63: -0.006402676461 | O63: 62 | P63: 1.999503986 | Q63: -0.08140795852
D64: 62 | E64: 0.0062 | F64: 3.00062 | G64: =_xlfn.NORM.S.INV(RAND())*SQRT(dt) -> -0.004306777301 | H64: -0.01546373354 | I64: -0.003092746708 | O64: 63 | P64: -4.670235648 | Q64: 0.17358814
D65: 63 | E65: 0.0063 | F65: 3.00063 | G65: =_xlfn.NORM.S.INV(RAND())*SQRT(dt) -> 0.006902451453 | H65: -0.01977051084 | I65: -0.003954102168 | O65: 64 | P65: -1.764316189 | Q65: -0.09265279951
D66: 64 | E66: =(T/MAX(D:D))*D66 -> 0.0064 | F66: 3.00064 | G66: =_xlfn.NORM.S.INV(RAND())*SQRT(dt) -> -0.0113703387 | H66: -0.01286805939 | I66: -0.002573611877 | O66: 65 | P66: -0.3781306242 | Q66: -0.09628768168
D67: 65 | E67: 0.0065 | F67: =a+mu*E67 -> 3.00065 | G67: =_xlfn.NORM.S.INV(RAND())*SQRT(dt) -> -0.001332438231 | H67: -0.02423839808 | I67: =sigma*H67 -> -0.004847679617 | O67: 66 | P67: 2.283331895 | Q67: -0.09078392885
D68: 66 | E68: 0.0066 | F68: 3.00066 | G68: =_xlfn.NORM.S.INV(RAND())*SQRT(dt) -> -0.0001686036389 | H68: -0.02557083632 | I68: -0.005114167263 | O68: 67 | P68: -1.18117813 | Q68: 0.08819593466
D69: 67 | E69: 0.0067 | F69: 3.00067 | G69: =_xlfn.NORM.S.INV(RAND())*SQRT(dt) -> 0.0126684993 | H69: =H68+G68 -> -0.02573943995 | I69: -0.005147887991 | O69: 68 | P69: 5.181437715 | Q69: 0.05370704189
D70: 68 | E70: 0.0068 | F70: 3.00068 | G70: =_xlfn.NORM.S.INV(RAND())*SQRT(dt) -> 0.00696874025 | H70: -0.01307094066 | I70: -0.002614188131 | O70: 69 | P70: -1.11859907 | Q70: -0.005706727849
D71: 69 | E71: 0.0069 | F71: 3.00069 | G71: =_xlfn.NORM.S.INV(RAND())*SQRT(dt) -> 0.0001330268555 | H71: -0.006102200406 | I71: -0.001220440081 | O71: 70 | P71: -7.326516079 | Q71: 0.1124378905
D72: 70 | E72: 0.007 | F72: 3.0007 | G72: =_xlfn.NORM.S.INV(RAND())*SQRT(dt) -> 0.01212176186 | H72: -0.00596917355 | I72: -0.00119383471 | O72: 71 | P72: -0.01367546533 | Q72: -0.08317271574
D73: 71 | E73: 0.0071 | F73: 3.00071 | G73: =_xlfn.NORM.S.INV(RAND())*SQRT(dt) -> 0.01744248453 | H73: 0.006152588314 | I73: 0.001230517663 | O73: 72 | P73: -0.7493495747 | Q73: -0.03835078167
D74: 72 | E74: 0.0072 | F74: 3.00072 | G74: =_xlfn.NORM.S.INV(RAND())*SQRT(dt) -> 0.01959706999 | H74: 0.02359507285 | I74: 0.004719014569 | O74: 73 | P74: 1.362313799 | Q74: -0.02383500567
D75: 73 | E75: 0.0073 | F75: 3.00073 | G75: =_xlfn.NORM.S.INV(RAND())*SQRT(dt) -> 0.003675769742 | H75: 0.04319214284 | I75: 0.008638428568 | O75: 74 | P75: 3.567016715 | Q75: -0.0816994859
D76: 74 | E76: 0.0074 | F76: 3.00074 | G76: =_xlfn.NORM.S.INV(RAND())*SQRT(dt) -> -0.01090046832 | H76: 0.04686791258 | I76: 0.009373582516 | O76: 75 | P76: 9.864870338 | Q76: 0.02426017393
D77: 75 | E77: 0.0075 | F77: 3.00075 | G77: =_xlfn.NORM.S.INV(RAND())*SQRT(dt) -> -0.002962060201 | H77: 0.03596744426 | I77: 0.007193488852 | O77: 76 | P77: -3.451927688 | Q77: 0.7148225225
D78: 76 | E78: 0.0076 | F78: 3.00076 | G78: =_xlfn.NORM.S.INV(RAND())*SQRT(dt) -> 0.001505576274 | H78: 0.03300538406 | I78: 0.006601076811 | O78: 77 | P78: -0.2969531107 | Q78: -0.07278390126
D79: 77 | E79: 0.0077 | F79: 3.00077 | G79: =_xlfn.NORM.S.INV(RAND())*SQRT(dt) -> -0.006332510028 | H79: 0.03451096033 | I79: 0.006902192066 | O79: 78 | P79: 2.515200452 | Q79: 0.1456963827
D80: 78 | E80: 0.0078 | F80: 3.00078 | G80: =_xlfn.NORM.S.INV(RAND())*SQRT(dt) -> 0.00333724737 | H80: 0.0281784503 | I80: 0.005635690061 | O80: 79 | P80: -4.240917835 | Q80: 0.1440629263
D81: 79 | E81: 0.0079 | F81: 3.00079 | G81: =_xlfn.NORM.S.INV(RAND())*SQRT(dt) -> 0.005611617152 | H81: 0.03151569767 | I81: 0.006303139535 | O81: 80 | P81: 1.987416907 | Q81: 0.007083149026
D82: 80 | E82: 0.008 | F82: 3.0008 | G82: =_xlfn.NORM.S.INV(RAND())*SQRT(dt) -> 0.01123738459 | H82: 0.03712731483 | I82: 0.007425462965 | O82: 81 | P82: -2.039553678 | Q82: 0.03870207666
D83: 81 | E83: 0.0081 | F83: 3.00081 | G83: =_xlfn.NORM.S.INV(RAND())*SQRT(dt) -> 0.0003021832505 | H83: 0.04836469941 | I83: 0.009672939883 | O83: 82 | P83: -0.9018016699 | Q83: 0.280299209
D84: 82 | E84: 0.0082 | F84: 3.00082 | G84: =_xlfn.NORM.S.INV(RAND())*SQRT(dt) -> -0.01979580152 | H84: 0.04866688267 | I84: 0.009733376533 | O84: 83 | P84: -2.984974813 | Q84: 0.257041855
D85: 83 | E85: 0.0083 | F85: 3.00083 | G85: =_xlfn.NORM.S.INV(RAND())*SQRT(dt) -> -0.0001593101516 | H85: 0.02887108115 | I85: 0.00577421623 | O85: 84 | P85: 1.57325389 | Q85: -0.06528458312
D86: 84 | E86: 0.0084 | F86: 3.00084 | G86: =_xlfn.NORM.S.INV(RAND())*SQRT(dt) -> 0.002608869821 | H86: 0.028711771 | I86: 0.0057423542 | O86: 85 | P86: -0.1941151999 | Q86: 0.03725887946
D87: 85 | E87: 0.0085 | F87: 3.00085 | G87: =_xlfn.NORM.S.INV(RAND())*SQRT(dt) -> 0.01390110146 | H87: 0.03132064082 | I87: 0.006264128164 | O87: 86 | P87: 1.572779725 | Q87: -0.08194598154
D88: 86 | E88: 0.0086 | F88: 3.00086 | G88: =_xlfn.NORM.S.INV(RAND())*SQRT(dt) -> 0.01138416869 | H88: 0.04522174227 | I88: 0.009044348455 | O88: 87 | P88: -1.521115025 | Q88: -0.06290995685
D89: 87 | E89: 0.0087 | F89: 3.00087 | G89: =_xlfn.NORM.S.INV(RAND())*SQRT(dt) -> 0.0006516883412 | H89: 0.05660591096 | I89: 0.01132118219 | O89: 88 | P89: 0.07976620035 | Q89: 0.2132327035
D90: 88 | E90: 0.0088 | F90: 3.00088 | G90: =_xlfn.NORM.S.INV(RAND())*SQRT(dt) -> -0.001290765243 | H90: 0.05725759931 | I90: 0.01145151986 | O90: 89 | P90: 2.747874943 | Q90: -0.09145613381
D91: 89 | E91: 0.0089 | F91: 3.00089 | G91: =_xlfn.NORM.S.INV(RAND())*SQRT(dt) -> -0.006017129581 | H91: 0.05596683406 | I91: 0.01119336681 | O91: 90 | P91: 3.467876617 | Q91: -0.06813457859
D92: 90 | E92: 0.009 | F92: 3.0009 | G92: =_xlfn.NORM.S.INV(RAND())*SQRT(dt) -> -0.005744708908 | H92: 0.04994970448 | I92: 0.009989940896 | O92: 91 | P92: -1.489518429 | Q92: 0.2779466333
D93: 91 | E93: 0.0091 | F93: 3.00091 | G93: =_xlfn.NORM.S.INV(RAND())*SQRT(dt) -> -0.005128147175 | H93: 0.04420499557 | I93: 0.008840999115 | O93: 92 | P93: -1.614379582 | Q93: -0.0928834265
D94: 92 | E94: 0.0092 | F94: 3.00092 | G94: =_xlfn.NORM.S.INV(RAND())*SQRT(dt) -> 0.0116801139 | H94: 0.0390768484 | I94: 0.00781536968 | O94: 93 | P94: -1.885869629 | Q94: -0.06195181056
D95: 93 | E95: 0.0093 | F95: 3.00093 | G95: =_xlfn.NORM.S.INV(RAND())*SQRT(dt) -> 0.005851759042 | H95: 0.0507569623 | I95: 0.01015139246 | O95: 94 | P95: 0.06163118109 | Q95: -0.04193054382
D96: 94 | E96: 0.0094 | F96: 3.00094 | G96: =_xlfn.NORM.S.INV(RAND())*SQRT(dt) -> -0.0001617858781 | H96: 0.05660872134 | I96: 0.01132174427 | O96: 95 | P96: -1.250525463 | Q96: -0.0809651927
D97: 95 | E97: 0.0095 | F97: 3.00095 | G97: =_xlfn.NORM.S.INV(RAND())*SQRT(dt) -> 0.001662123867 | H97: 0.05644693546 | I97: 0.01128938709 | O97: 96 | P97: 2.27176425 | Q97: 0.07752529613
D98: 96 | E98: 0.0096 | F98: 3.00096 | G98: =_xlfn.NORM.S.INV(RAND())*SQRT(dt) -> -0.007928780041 | H98: 0.05810905933 | I98: 0.01162181187 | O98: 97 | P98: 3.556530909 | Q98: -0.07467166602
D99: 97 | E99: 0.0097 | F99: 3.00097 | G99: =_xlfn.NORM.S.INV(RAND())*SQRT(dt) -> 0.00755076953 | H99: 0.05018027929 | I99: 0.01003605586 | O99: 98 | P99: -4.416540395 | Q99: -0.09794244463
D100: 98 | E100: 0.0098 | F100: 3.00098 | G100: =_xlfn.NORM.S.INV(RAND())*SQRT(dt) -> -0.01197593849 | H100: 0.05773104882 | I100: 0.01154620976 | O100: 99 | P100: 6.016940023 | Q100: 0.0337667826
D101: 99 | E101: 0.0099 | F101: 3.00099 | G101: =_xlfn.NORM.S.INV(RAND())*SQRT(dt) -> 0.01379451909 | H101: 0.04575511033 | I101: 0.009151022066 | O101: 100 | P101: 2.58894229 | Q101: -0.0961123745
D102: 100 | E102: 0.01 | F102: 3.001 | G102: =_xlfn.NORM.S.INV(RAND())*SQRT(dt) -> 0.0008775526673 | H102: 0.05954962941 | I102: 0.01190992588 | O102: 101 | P102: -0.7763563834 | Q102: -0.06484753204
D103: 101 | E103: 0.0101 | F103: 3.00101 | G103: =_xlfn.NORM.S.INV(RAND())*SQRT(dt) -> -0.008142558806 | H103: 0.06042718208 | I103: 0.01208543642 | O103: 102 | P103: -1.670699896 | Q103: 0.05382091727
D104: 102 | E104: 0.0102 | F104: 3.00102 | G104: =_xlfn.NORM.S.INV(RAND())*SQRT(dt) -> -0.02047898643 | H104: 0.05228462328 | I104: 0.01045692466 | O104: 103 | P104: -0.2298319576 | Q104: -0.04387122308
D105: 103 | E105: 0.0103 | F105: 3.00103 | G105: =_xlfn.NORM.S.INV(RAND())*SQRT(dt) -> 0.00494761825 | H105: 0.03180563685 | I105: 0.006361127369 | O105: 104 | P105: -2.007825594 | Q105: -0.07535410464
D106: 104 | E106: 0.0104 | F106: 3.00104 | G106: =_xlfn.NORM.S.INV(RAND())*SQRT(dt) -> -0.008952847367 | H106: 0.0367532551 | I106: 0.00735065102 | O106: 105 | P106: 4.020732118 | Q106: 0.2005141061
D107: 105 | E107: 0.0105 | F107: 3.00105 | G107: =_xlfn.NORM.S.INV(RAND())*SQRT(dt) -> 0.001564843587 | H107: 0.02780040773 | I107: 0.005560081546 | O107: 106 | P107: -2.782444673 | Q107: 0.3061976881
D108: 106 | E108: 0.0106 | F108: 3.00106 | G108: =_xlfn.NORM.S.INV(RAND())*SQRT(dt) -> 0.00236861643 | H108: 0.02936525132 | I108: 0.005873050263 | O108: 107 | P108: -2.019487108 | Q108: -0.08384609363
D109: 107 | E109: 0.0107 | F109: 3.00107 | G109: =_xlfn.NORM.S.INV(RAND())*SQRT(dt) -> 0.01234113184 | H109: 0.03173386775 | I109: 0.006346773549 | O109: 108 | P109: 1.493550357 | Q109: -0.07413785457
D110: 108 | E110: 0.0108 | F110: 3.00108 | G110: =_xlfn.NORM.S.INV(RAND())*SQRT(dt) -> -0.01969856945 | H110: 0.04407499959 | I110: 0.008814999918 | O110: 109 | P110: 0.9706842297 | Q110: -0.02854883842
D111: 109 | E111: 0.0109 | F111: 3.00109 | G111: =_xlfn.NORM.S.INV(RAND())*SQRT(dt) -> -0.003949110659 | H111: 0.02437643013 | I111: 0.004875286027 | O111: 110 | P111: -0.6091318094 | Q111: 0.01883270752
D112: 110 | E112: 0.011 | F112: 3.0011 | G112: =_xlfn.NORM.S.INV(RAND())*SQRT(dt) -> -0.009456043494 | H112: 0.02042731948 | I112: 0.004085463895 | O112: 111 | P112: 2.409231552 | Q112: 0.09652230044
D113: 111 | E113: 0.0111 | F113: 3.00111 | G113: =_xlfn.NORM.S.INV(RAND())*SQRT(dt) -> 0.008775064799 | H113: 0.01097127598 | I113: 0.002194255196 | O113: 112 | P113: 0.2347155566 | Q113: -0.08945004882
D114: 112 | E114: 0.0112 | F114: 3.00112 | G114: =_xlfn.NORM.S.INV(RAND())*SQRT(dt) -> 0.001961808262 | H114: 0.01974634078 | I114: 0.003949268156 | O114: 113 | P114: -1.697348138 | Q114: -0.04378208889
D115: 113 | E115: 0.0113 | F115: 3.00113 | G115: =_xlfn.NORM.S.INV(RAND())*SQRT(dt) -> 0.01597991704 | H115: 0.02170814904 | I115: 0.004341629809 | O115: 114 | P115: -1.285206332 | Q115: 0.2998195723
D116: 114 | E116: 0.0114 | F116: 3.00114 | G116: =_xlfn.NORM.S.INV(RAND())*SQRT(dt) -> -0.002603956207 | H116: 0.03768806608 | I116: 0.007537613217 | O116: 115 | P116: -1.728404335 | Q116: -0.09574494981
D117: 115 | E117: 0.0115 | F117: 3.00115 | G117: =_xlfn.NORM.S.INV(RAND())*SQRT(dt) -> 0.01806514598 | H117: 0.03508410988 | I117: 0.007016821975 | O117: 116 | P117: 3.585630177 | Q117: 0.003049380064
D118: 116 | E118: 0.0116 | F118: 3.00116 | G118: =_xlfn.NORM.S.INV(RAND())*SQRT(dt) -> -0.003790211194 | H118: 0.05314925586 | I118: 0.01062985117 | O118: 117 | P118: -0.0905180723 | Q118: 0.2463297444
D119: 117 | E119: 0.0117 | F119: 3.00117 | G119: =_xlfn.NORM.S.INV(RAND())*SQRT(dt) -> 0.005902886589 | H119: 0.04935904466 | I119: 0.009871808933 | O119: 118 | P119: -3.859599021 | Q119: -0.1008221728
D120: 118 | E120: 0.0118 | F120: 3.00118 | G120: =_xlfn.NORM.S.INV(RAND())*SQRT(dt) -> 0.0009059536108 | H120: 0.05526193125 | I120: 0.01105238625 | O120: 119 | P120: -2.0975177 | Q120: -0.1003572055
D121: 119 | E121: 0.0119 | F121: 3.00119 | G121: =_xlfn.NORM.S.INV(RAND())*SQRT(dt) -> -0.01331587459 | H121: 0.05616788486 | I121: 0.01123357697 | O121: 120 | P121: -0.9622802941 | Q121: -0.08192686007
D122: 120 | E122: 0.012 | F122: 3.0012 | G122: =_xlfn.NORM.S.INV(RAND())*SQRT(dt) -> 0.006804944742 | H122: 0.04285201027 | I122: 0.008570402055 | O122: 121 | P122: 5.177785712 | Q122: -0.09798193089
D123: 121 | E123: 0.0121 | F123: 3.00121 | G123: =_xlfn.NORM.S.INV(RAND())*SQRT(dt) -> -0.005016589187 | H123: 0.04965695502 | I123: 0.009931391003 | O123: 122 | P123: 0.519344663 | Q123: -0.05281881222
D124: 122 | E124: 0.0122 | F124: 3.00122 | G124: =_xlfn.NORM.S.INV(RAND())*SQRT(dt) -> 0.005311360489 | H124: 0.04464036583 | I124: 0.008928073166 | O124: 123 | P124: 0.7273622699 | Q124: -0.0589721125
D125: 123 | E125: 0.0123 | F125: 3.00123 | G125: =_xlfn.NORM.S.INV(RAND())*SQRT(dt) -> 0.02906495799 | H125: 0.04995172632 | I125: 0.009990345264 | O125: 124 | P125: 0.8583278371 | Q125: -0.07265438836
D126: 124 | E126: 0.0124 | F126: 3.00124 | G126: =_xlfn.NORM.S.INV(RAND())*SQRT(dt) -> 0.0005155130244 | H126: 0.07901668431 | I126: 0.01580333686 | O126: 125 | P126: -1.548352848 | Q126: 0.1422218848
D127: 125 | E127: 0.0125 | F127: 3.00125 | G127: =_xlfn.NORM.S.INV(RAND())*SQRT(dt) -> 0.01007330264 | H127: 0.07953219734 | I127: 0.01590643947 | O127: 126 | P127: -2.912576687 | Q127: 0.08271224026
D128: 126 | E128: 0.0126 | F128: 3.00126 | G128: =_xlfn.NORM.S.INV(RAND())*SQRT(dt) -> -0.001342017345 | H128: 0.08960549998 | I128: 0.0179211 | O128: 127 | P128: 2.434762024 | Q128: -0.0972684822
D129: 127 | E129: 0.0127 | F129: 3.00127 | G129: =_xlfn.NORM.S.INV(RAND())*SQRT(dt) -> -0.009383898278 | H129: 0.08826348264 | I129: 0.01765269653 | O129: 128 | P129: 2.220865658 | Q129: 0.1153684838
D130: 128 | E130: =(T/MAX(D:D))*D130 -> 0.0128 | F130: 3.00128 | G130: =_xlfn.NORM.S.INV(RAND())*SQRT(dt) -> 0.009132126224 | H130: 0.07887958436 | I130: 0.01577591687 | O130: 129 | P130: -1.046415312 | Q130: 0.01389894062
D131: 129 | E131: 0.0129 | F131: =a+mu*E131 -> 3.00129 | G131: =_xlfn.NORM.S.INV(RAND())*SQRT(dt) -> 0.004513761565 | H131: 0.08801171058 | I131: =sigma*H131 -> 0.01760234212 | O131: 130 | P131: -3.166589172 | Q131: -0.08074287163
D132: 130 | E132: 0.013 | F132: 3.0013 | G132: =_xlfn.NORM.S.INV(RAND())*SQRT(dt) -> -0.004817331706 | H132: 0.09252547215 | I132: 0.01850509443 | O132: 131 | P132: -1.175598376 | Q132: -0.09442566306
D133: 131 | E133: 0.0131 | F133: 3.00131 | G133: =_xlfn.NORM.S.INV(RAND())*SQRT(dt) -> 0.009933828363 | H133: =H132+G132 -> 0.08770814044 | I133: 0.01754162809 | O133: 132 | P133: -8.832815271 | Q133: 0.1175414733
D134: 132 | E134: 0.0132 | F134: 3.00132 | G134: =_xlfn.NORM.S.INV(RAND())*SQRT(dt) -> -0.0003438868712 | H134: 0.0976419688 | I134: 0.01952839376 | O134: 133 | P134: 5.125021146 | Q134: 0.1476322477
D135: 133 | E135: 0.0133 | F135: 3.00133 | G135: =_xlfn.NORM.S.INV(RAND())*SQRT(dt) -> -0.004506500625 | H135: 0.09729808193 | I135: 0.01945961639 | O135: 134 | P135: 4.701798728 | Q135: -0.09476259849
D136: 134 | E136: 0.0134 | F136: 3.00134 | G136: =_xlfn.NORM.S.INV(RAND())*SQRT(dt) -> 0.008023933414 | H136: 0.09279158131 | I136: 0.01855831626 | O136: 135 | P136: 5.246121599 | Q136: 0.129793077
D137: 135 | E137: 0.0135 | F137: 3.00135 | G137: =_xlfn.NORM.S.INV(RAND())*SQRT(dt) -> 0.008371595899 | H137: 0.1008155147 | I137: 0.02016310294 | O137: 136 | P137: -0.07711636246 | Q137: -0.09970530094
D138: 136 | E138: 0.0136 | F138: 3.00136 | G138: =_xlfn.NORM.S.INV(RAND())*SQRT(dt) -> -0.006784175324 | H138: 0.1091871106 | I138: 0.02183742212 | O138: 137 | P138: 2.231495904 | Q138: -0.04422814757
D139: 137 | E139: 0.0137 | F139: 3.00137 | G139: =_xlfn.NORM.S.INV(RAND())*SQRT(dt) -> -0.004143581147 | H139: 0.1024029353 | I139: 0.02048058706 | O139: 138 | P139: 0.5118113762 | Q139: 0.07580446284
D140: 138 | E140: 0.0138 | F140: 3.00138 | G140: =_xlfn.NORM.S.INV(RAND())*SQRT(dt) -> -0.01665635457 | H140: 0.09825935415 | I140: 0.01965187083 | O140: 139 | P140: 2.643301512 | Q140: -0.07348897543
D141: 139 | E141: 0.0139 | F141: 3.00139 | G141: =_xlfn.NORM.S.INV(RAND())*SQRT(dt) -> -0.005173482316 | H141: 0.08160299958 | I141: 0.01632059992 | O141: 140 | P141: -1.560083926 | Q141: 0.01367477745
D142: 140 | E142: 0.014 | F142: 3.0014 | G142: =_xlfn.NORM.S.INV(RAND())*SQRT(dt) -> 0.01362334592 | H142: 0.07642951726 | I142: 0.01528590345 | O142: 141 | P142: 1.146101949 | Q142: 0.05602343753
D143: 141 | E143: 0.0141 | F143: 3.00141 | G143: =_xlfn.NORM.S.INV(RAND())*SQRT(dt) -> 0.005315014364 | H143: 0.09005286318 | I143: 0.01801057264 | O143: 142 | P143: 5.952040965 | Q143: 0.08755954434
D144: 142 | E144: 0.0142 | F144: 3.00142 | G144: =_xlfn.NORM.S.INV(RAND())*SQRT(dt) -> -0.008039312921 | H144: 0.09536787754 | I144: 0.01907357551 | O144: 143 | P144: 2.491213425 | Q144: -0.07078312105
D145: 143 | E145: 0.0143 | F145: 3.00143 | G145: =_xlfn.NORM.S.INV(RAND())*SQRT(dt) -> 0.01030291716 | H145: 0.08732856462 | I145: 0.01746571292 | O145: 144 | P145: 0.8830812241 | Q145: 0.08186087997
D146: 144 | E146: 0.0144 | F146: 3.00144 | G146: =_xlfn.NORM.S.INV(RAND())*SQRT(dt) -> -0.00633502403 | H146: 0.09763148178 | I146: 0.01952629636 | O146: 145 | P146: 3.248553895 | Q146: -0.09834686153
D147: 145 | E147: 0.0145 | F147: 3.00145 | G147: =_xlfn.NORM.S.INV(RAND())*SQRT(dt) -> -0.001458055637 | H147: 0.09129645775 | I147: 0.01825929155 | O147: 146 | P147: 1.886990937 | Q147: 0.02676613639
D148: 146 | E148: 0.0146 | F148: 3.00146 | G148: =_xlfn.NORM.S.INV(RAND())*SQRT(dt) -> -0.000374028289 | H148: 0.08983840212 | I148: 0.01796768042 | O148: 147 | P148: -4.568206296 | Q148: 0.09344691758
D149: 147 | E149: 0.0147 | F149: 3.00147 | G149: =_xlfn.NORM.S.INV(RAND())*SQRT(dt) -> 0.001759204909 | H149: 0.08946437383 | I149: 0.01789287477 | O149: 148 | P149: -2.865888345 | Q149: 0.4011610808
D150: 148 | E150: 0.0148 | F150: 3.00148 | G150: =_xlfn.NORM.S.INV(RAND())*SQRT(dt) -> -0.01025200756 | H150: 0.09122357874 | I150: 0.01824471575 | O150: 149 | P150: -5.142379048 | Q150: 0.0313131138
D151: 149 | E151: 0.0149 | F151: 3.00149 | G151: =_xlfn.NORM.S.INV(RAND())*SQRT(dt) -> -0.01184170546 | H151: 0.08097157118 | I151: 0.01619431424 | O151: 150 | P151: -0.5279314268 | Q151: -0.03574567173
D152: 150 | E152: 0.015 | F152: 3.0015 | G152: =_xlfn.NORM.S.INV(RAND())*SQRT(dt) -> 0.00495166275 | H152: 0.06912986572 | I152: 0.01382597314 | O152: 151 | P152: 6.433720458 | Q152: 0.08977457245
D153: 151 | E153: 0.0151 | F153: 3.00151 | G153: =_xlfn.NORM.S.INV(RAND())*SQRT(dt) -> -0.01217251702 | H153: 0.07408152847 | I153: 0.01481630569 | O153: 152 | P153: 1.106540653 | Q153: 0.01987341625
D154: 152 | E154: 0.0152 | F154: 3.00152 | G154: =_xlfn.NORM.S.INV(RAND())*SQRT(dt) -> 0.007450554553 | H154: 0.06190901145 | I154: 0.01238180229 | O154: 153 | P154: -0.1542908337 | Q154: 0.07529543587
D155: 153 | E155: 0.0153 | F155: 3.00153 | G155: =_xlfn.NORM.S.INV(RAND())*SQRT(dt) -> 0.01289285463 | H155: 0.06935956601 | I155: 0.0138719132 | O155: 154 | P155: 2.171501471 | Q155: -0.09651694059
D156: 154 | E156: 0.0154 | F156: 3.00154 | G156: =_xlfn.NORM.S.INV(RAND())*SQRT(dt) -> 0.001885245206 | H156: 0.08225242064 | I156: 0.01645048413 | O156: 155 | P156: -1.048479571 | Q156: 0.1535065352
D157: 155 | E157: 0.0155 | F157: 3.00155 | G157: =_xlfn.NORM.S.INV(RAND())*SQRT(dt) -> -0.01180235107 | H157: 0.08413766585 | I157: 0.01682753317 | O157: 156 | P157: 2.780203125 | Q157: 0.02148197675
D158: 156 | E158: 0.0156 | F158: 3.00156 | G158: =_xlfn.NORM.S.INV(RAND())*SQRT(dt) -> 0.004773855586 | H158: 0.07233531477 | I158: 0.01446706295 | O158: 157 | P158: 2.135682501 | Q158: -0.09505016397
D159: 157 | E159: 0.0157 | F159: 3.00157 | G159: =_xlfn.NORM.S.INV(RAND())*SQRT(dt) -> -0.0006801913862 | H159: 0.07710917036 | I159: 0.01542183407 | O159: 158 | P159: -0.5110993451 | Q159: -0.05565735142
D160: 158 | E160: 0.0158 | F160: 3.00158 | G160: =_xlfn.NORM.S.INV(RAND())*SQRT(dt) -> -0.00625368739 | H160: 0.07642897897 | I160: 0.01528579579 | O160: 159 | P160: -2.885490483 | Q160: -0.08138489034
D161: 159 | E161: 0.0159 | F161: 3.00159 | G161: =_xlfn.NORM.S.INV(RAND())*SQRT(dt) -> 0.002636586317 | H161: 0.07017529158 | I161: 0.01403505832 | O161: 160 | P161: 0.3271276117 | Q161: -0.08123316577
D162: 160 | E162: 0.016 | F162: 3.0016 | G162: =_xlfn.NORM.S.INV(RAND())*SQRT(dt) -> 0.01287346124 | H162: 0.0728118779 | I162: 0.01456237558 | O162: 161 | P162: 0.5268285429 | Q162: 0.1005872079
D163: 161 | E163: 0.0161 | F163: 3.00161 | G163: =_xlfn.NORM.S.INV(RAND())*SQRT(dt) -> 0.01105506975 | H163: 0.08568533914 | I163: 0.01713706783 | O163: 162 | P163: -3.927769725 | Q163: -0.06137188768
D164: 162 | E164: 0.0162 | F164: 3.00162 | G164: =_xlfn.NORM.S.INV(RAND())*SQRT(dt) -> 0.01884232007 | H164: 0.0967404089 | I164: 0.01934808178 | O164: 163 | P164: -4.982833822 | Q164: -0.08435878511
D165: 163 | E165: 0.0163 | F165: 3.00163 | G165: =_xlfn.NORM.S.INV(RAND())*SQRT(dt) -> 0.006071906821 | H165: 0.115582729 | I165: 0.02311654579 | O165: 164 | P165: -2.416769979 | Q165: -0.09842363281
D166: 164 | E166: 0.0164 | F166: 3.00164 | G166: =_xlfn.NORM.S.INV(RAND())*SQRT(dt) -> -0.001175792435 | H166: 0.1216546358 | I166: 0.02433092716 | O166: 165 | P166: -4.535142759 | Q166: -0.09638507093
D167: 165 | E167: 0.0165 | F167: 3.00165 | G167: =_xlfn.NORM.S.INV(RAND())*SQRT(dt) -> -0.007522174649 | H167: 0.1204788434 | I167: 0.02409576867 | O167: 166 | P167: 4.492240841 | Q167: -0.09595430187
D168: 166 | E168: 0.0166 | F168: 3.00166 | G168: =_xlfn.NORM.S.INV(RAND())*SQRT(dt) -> 0.004662319695 | H168: 0.1129566687 | I168: 0.02259133374 | O168: 167 | P168: 1.489421303 | Q168: -0.01942545809
D169: 167 | E169: 0.0167 | F169: 3.00167 | G169: =_xlfn.NORM.S.INV(RAND())*SQRT(dt) -> -3.568942395e-05 | H169: 0.1176189884 | I169: 0.02352379768 | O169: 168 | P169: -9.399534809 | Q169: 0.1049074006
D170: 168 | E170: 0.0168 | F170: 3.00168 | G170: =_xlfn.NORM.S.INV(RAND())*SQRT(dt) -> 0.0001586591555 | H170: 0.117583299 | I170: 0.02351665979 | O170: 169 | P170: -0.4867770265 | Q170: -0.07973633573
D171: 169 | E171: 0.0169 | F171: 3.00169 | G171: =_xlfn.NORM.S.INV(RAND())*SQRT(dt) -> 0.02419917401 | H171: 0.1177419581 | I171: 0.02354839163 | O171: 170 | P171: -5.173172325 | Q171: -0.1014037109
D172: 170 | E172: 0.017 | F172: 3.0017 | G172: =_xlfn.NORM.S.INV(RAND())*SQRT(dt) -> -0.006009188758 | H172: 0.1419411321 | I172: 0.02838822643 | O172: 171 | P172: -3.588782472 | Q172: -0.08829582696
D173: 171 | E173: 0.0171 | F173: 3.00171 | G173: =_xlfn.NORM.S.INV(RAND())*SQRT(dt) -> -0.0004848095038 | H173: 0.1359319434 | I173: 0.02718638868 | O173: 172 | P173: 0.7607103748 | Q173: 0.009304992101
D174: 172 | E174: 0.0172 | F174: 3.00172 | G174: =_xlfn.NORM.S.INV(RAND())*SQRT(dt) -> 0.005833726888 | H174: 0.1354471339 | I174: 0.02708942677 | O174: 173 | P174: -0.4983506214 | Q174: 0.03193501893
D175: 173 | E175: 0.0173 | F175: 3.00173 | G175: =_xlfn.NORM.S.INV(RAND())*SQRT(dt) -> -0.01293671688 | H175: 0.1412808608 | I175: 0.02825617215 | O175: 174 | P175: -1.973289468 | Q175: -0.08760288192
D176: 174 | E176: 0.0174 | F176: 3.00174 | G176: =_xlfn.NORM.S.INV(RAND())*SQRT(dt) -> 0.01762137177 | H176: 0.1283441439 | I176: 0.02566882878 | O176: 175 | P176: 5.966004909 | Q176: -0.09792784739
D177: 175 | E177: 0.0175 | F177: 3.00175 | G177: =_xlfn.NORM.S.INV(RAND())*SQRT(dt) -> 0.001798883067 | H177: 0.1459655157 | I177: 0.02919310313 | O177: 176 | P177: -5.292181998 | Q177: -0.01963666621
D178: 176 | E178: 0.0176 | F178: 3.00176 | G178: =_xlfn.NORM.S.INV(RAND())*SQRT(dt) -> 0.0259319813 | H178: 0.1477643987 | I178: 0.02955287974 | O178: 177 | P178: -3.468931476 | Q178: 0.1953814825
D179: 177 | E179: 0.0177 | F179: 3.00177 | G179: =_xlfn.NORM.S.INV(RAND())*SQRT(dt) -> 0.0002842571954 | H179: 0.17369638 | I179: 0.034739276 | O179: 178 | P179: -3.667682639 | Q179: 0.1016959998
D180: 178 | E180: 0.0178 | F180: 3.00178 | G180: =_xlfn.NORM.S.INV(RAND())*SQRT(dt) -> 0.003485432384 | H180: 0.1739806372 | I180: 0.03479612744 | O180: 179 | P180: 0.694189625 | Q180: 0.2190779245
D181: 179 | E181: 0.0179 | F181: 3.00179 | G181: =_xlfn.NORM.S.INV(RAND())*SQRT(dt) -> -0.008137726316 | H181: 0.1774660696 | I181: 0.03549321392 | O181: 180 | P181: -1.252029781 | Q181: 0.003556668246
D182: 180 | E182: 0.018 | F182: 3.0018 | G182: =_xlfn.NORM.S.INV(RAND())*SQRT(dt) -> -0.009349996986 | H182: 0.1693283433 | I182: 0.03386566866 | O182: 181 | P182: 2.590466279 | Q182: -0.05959933342
D183: 181 | E183: 0.0181 | F183: 3.00181 | G183: =_xlfn.NORM.S.INV(RAND())*SQRT(dt) -> -0.009921478537 | H183: 0.1599783463 | I183: 0.03199566926 | O183: 182 | P183: -4.000942624 | Q183: 0.0964591149
D184: 182 | E184: 0.0182 | F184: 3.00182 | G184: =_xlfn.NORM.S.INV(RAND())*SQRT(dt) -> -0.004070547723 | H184: 0.1500568678 | I184: 0.03001137355 | O184: 183 | P184: -3.257232375 | Q184: -0.09154718795
D185: 183 | E185: 0.0183 | F185: 3.00183 | G185: =_xlfn.NORM.S.INV(RAND())*SQRT(dt) -> 0.0007716891878 | H185: 0.14598632 | I185: 0.02919726401 | O185: 184 | P185: -1.117037272 | Q185: 0.2716999079
D186: 184 | E186: 0.0184 | F186: 3.00184 | G186: =_xlfn.NORM.S.INV(RAND())*SQRT(dt) -> -0.006984500674 | H186: 0.1467580092 | I186: 0.02935160184 | O186: 185 | P186: -0.2695259024 | Q186: 0.008533271325
D187: 185 | E187: 0.0185 | F187: 3.00185 | G187: =_xlfn.NORM.S.INV(RAND())*SQRT(dt) -> -0.0102712609 | H187: 0.1397735085 | I187: 0.02795470171 | O187: 186 | P187: -3.187853263 | Q187: -0.03808079558
D188: 186 | E188: 0.0186 | F188: 3.00186 | G188: =_xlfn.NORM.S.INV(RAND())*SQRT(dt) -> -0.007253129839 | H188: 0.1295022477 | I188: 0.02590044953 | O188: 187 | P188: 2.247839382 | Q188: -0.03910178366
D189: 187 | E189: 0.0187 | F189: 3.00187 | G189: =_xlfn.NORM.S.INV(RAND())*SQRT(dt) -> 0.007087687458 | H189: 0.1222491178 | I189: 0.02444982356 | O189: 188 | P189: 1.546242124 | Q189: 0.1494419749
D190: 188 | E190: 0.0188 | F190: 3.00188 | G190: =_xlfn.NORM.S.INV(RAND())*SQRT(dt) -> 0.0003743355917 | H190: 0.1293368053 | I190: 0.02586736105 | O190: 189 | P190: -1.532187556 | Q190: 0.01037425732
D191: 189 | E191: 0.0189 | F191: 3.00189 | G191: =_xlfn.NORM.S.INV(RAND())*SQRT(dt) -> 0.03041811824 | H191: 0.1297111409 | I191: 0.02594222817 | O191: 190 | P191: 5.164942031 | Q191: -0.09902188058
D192: 190 | E192: 0.019 | F192: 3.0019 | G192: =_xlfn.NORM.S.INV(RAND())*SQRT(dt) -> -0.01034336641 | H192: 0.1601292591 | I192: 0.03202585182 | O192: 191 | P192: 3.163183096 | Q192: 0.0002487089969
D193: 191 | E193: 0.0191 | F193: 3.00191 | G193: =_xlfn.NORM.S.INV(RAND())*SQRT(dt) -> -0.001972014977 | H193: 0.1497858927 | I193: 0.02995717854 | O193: 192 | P193: 2.706038124 | Q193: 0.01304981586
D194: 192 | E194: =(T/MAX(D:D))*D194 -> 0.0192 | F194: 3.00192 | G194: =_xlfn.NORM.S.INV(RAND())*SQRT(dt) -> -0.005249678167 | H194: 0.1478138777 | I194: 0.02956277554 | O194: 193 | P194: 1.238035302 | Q194: -0.1010206005
D195: 193 | E195: 0.0193 | F195: =a+mu*E195 -> 3.00193 | G195: =_xlfn.NORM.S.INV(RAND())*SQRT(dt) -> 0.004073689892 | H195: 0.1425641995 | I195: =sigma*H195 -> 0.02851283991 | O195: 194 | P195: -0.8343952507 | Q195: -0.07004854992
D196: 194 | E196: 0.0194 | F196: 3.00194 | G196: =_xlfn.NORM.S.INV(RAND())*SQRT(dt) -> 0.01423634761 | H196: 0.1466378894 | I196: 0.02932757789 | O196: 195 | P196: 0.05462879613 | Q196: 0.09558261661
D197: 195 | E197: 0.0195 | F197: 3.00195 | G197: =_xlfn.NORM.S.INV(RAND())*SQRT(dt) -> 0.006196812289 | H197: =H196+G196 -> 0.160874237 | I197: 0.03217484741 | O197: 196 | P197: 1.344641916 | Q197: 0.07536935751
D198: 196 | E198: 0.0196 | F198: 3.00196 | G198: =_xlfn.NORM.S.INV(RAND())*SQRT(dt) -> 0.005017973018 | H198: 0.1670710493 | I198: 0.03341420987 | O198: 197 | P198: -5.205146535 | Q198: -0.01769274648
D199: 197 | E199: 0.0197 | F199: 3.00197 | G199: =_xlfn.NORM.S.INV(RAND())*SQRT(dt) -> 0.007991284358 | H199: 0.1720890224 | I199: 0.03441780447 | O199: 198 | P199: -2.288707651 | Q199: 0.1105549995
D200: 198 | E200: 0.0198 | F200: 3.00198 | G200: =_xlfn.NORM.S.INV(RAND())*SQRT(dt) -> -0.008047922253 | H200: 0.1800803067 | I200: 0.03601606134 | O200: 199 | P200: 0.2350662371 | Q200: -0.07342882762
... 4300 more rows
